Workbook

Sheet Mittelhilfstabelle
A2: Stunde | B2: Wind | C2: Luftfeuchtigkeit | D2: Luftdruck | E2: Taupunkttemperatur | F2: Bewölkung | H2: Stunde | I2: Wind | J2: Luftfeuchtigkeit | K2: Luftdruck | L2: Taupunkttemperatur | M2: Bewölkung
A3: 00 | B3: 1 | C3: 98 | D3: 1026.4 | E3: 1.2 | F3: 8 | H3: 00 | I3: 1 | J3: 98 | K3: 1031.5 | L3: 0.1 | M3: 8
A4: 01 | B4: 1 | C4: 98 | D4: 1026.8 | E4: 1.2 | F4: 8 | H4: 01 | I4: 1 | J4: 98 | K4: 1031.6 | L4: 0 | M4: 8
A5: 02 | B5: 0 | C5: 98 | D5: 1027 | E5: 1.1 | F5: 8 | H5: 02 | I5: 1 | J5: 98 | K5: 1031.5 | L5: 0 | M5: 8
A6: 03 | B6: 0 | C6: 98 | D6: 1027.6 | E6: 1 | F6: 8 | H6: 03 | I6: 1 | J6: 98 | K6: 1031.4 | L6: -0.1 | M6: 8
A7: 04 | B7: 0 | C7: 98 | D7: 1028 | E7: 0.7 | F7: 8 | H7: 04 | I7: 1 | J7: 98 | K7: 1031.3 | L7: -0.1 | M7: 8
A8: 05 | B8: 1 | C8: 98 | D8: 1028.2 | E8: 0.6 | F8: 8 | H8: 05 | I8: 1 | J8: 98 | K8: 1031.3 | L8: -0.1 | M8: 8
A9: 06 | B9: 0 | C9: 98 | D9: 1028.3 | E9: 0.7 | F9: 8 | H9: 06 | I9: 1 | J9: 97 | K9: 1031.3 | L9: -0.3 | M9: 8
A10: 07 | B10: 0 | C10: 98 | D10: 1028.6 | E10: 0.7 | F10: 8 | H10: 07 | I10: 0 | J10: 97 | K10: 1031.7 | L10: -0.3 | M10: 8
A11: 08 | B11: 1 | C11: 98 | D11: 1029.2 | E11: 0.7 | F11: 8 | H11: 08 | I11: 1 | J11: 98 | K11: 1013.9 | L11: 0 | M11: 8
A12: 09 | B12: 1 | C12: 98 | D12: 1029.6 | E12: 0.8 | F12: 8 | H12: 09 | I12: 1 | J12: 97 | K12: 1032.4 | L12: 0.1 | M12: 8
A13: 10 | B13: 1 | C13: 98 | D13: 1029.7 | E13: 0.6 | F13: 8 | H13: 10 | I13: 1 | J13: 97 | K13: 1032.4 | L13: 0.3 | M13: 8
A14: 11 | B14: 1 | C14: 98 | D14: 1029.9 | E14: 0.7 | F14: 8 | H14: 11 | I14: 0 | J14: 96 | K14: 1032.3 | L14: 0.5 | M14: 8
A15: 12 | B15: 1 | C15: 98 | D15: 1030.1 | E15: 0.7 | F15: 8 | H15: 12 | I15: 1 | J15: 95 | K15: 1032.1 | L15: 0.6 | M15: 8
A16: 13 | B16: 1 | C16: 98 | D16: 1030.2 | E16: 0.9 | F16: 8 | H16: 13 | I16: 1 | J16: 94 | K16: 1031.9 | L16: 0.5 | M16: 8
A17: 14 | B17: 1 | C17: 97 | D17: 1030.1 | E17: 0.7 | F17: 8 | H17: 14 | I17: 1 | J17: 94 | K17: 1031.7 | L17: 0.6 | M17: 8
A18: 15 | B18: 1 | C18: 97 | D18: 1030 | E18: 0.6 | F18: 8 | H18: 15 | I18: 1 | J18: 95 | K18: 1031.6 | L18: 0.7 | M18: 8
A19: 16 | B19: 1 | C19: 98 | D19: 1030 | E19: 0.6 | F19: 8 | H19: 16 | I19: 1 | J19: 96 | K19: 1031.5 | L19: 0.7 | M19: 8
A20: 17 | B20: 1 | C20: 98 | D20: 1030 | E20: 0.4 | F20: 8 | H20: 17 | I20: 0 | J20: 97 | K20: 1031.7 | L20: 0.7 | M20: 8
A21: 18 | B21: 1 | C21: 98 | D21: 1030.5 | E21: 0.3 | F21: 8 | H21: 18 | I21: 0 | J21: 97 | K21: 1031.9 | L21: 0.7 | M21: 8
A22: 19 | B22: 1 | C22: 98 | D22: 1030.7 | E22: 0.2 | F22: 8 | H22: 19 | I22: 1 | J22: 98 | K22: 1031.9 | L22: 0.8 | M22: 8
A23: 20 | B23: 1 | C23: 98 | D23: 1031.2 | E23: 0.1 | F23: 8 | H23: 20 | I23: 1 | J23: 98 | K23: 1031.6 | L23: 0.7 | M23: 8
A24: 21 | B24: 1 | C24: 98 | D24: 1031.3 | E24: 0.1 | F24: 8 | H24: 21 | I24: 0 | J24: 98 | K24: 1031.6 | L24: 0.7 | M24: 8
A25: 22 | B25: 1 | C25: 97 | D25: 1031.4 | E25: 0.1 | F25: 8 | H25: 22 | I25: 0 | J25: 98 | K25: 1031.7 | L25: 0.7 | M25: 8
A26: 23 | B26: 1 | C26: 97 | D26: 1031.5 | E26: 0 | F26: 8 | H26: 23 | I26: 0 | J26: 98 | K26: 1031.5 | L26: 0.7 | M26: 8
A27: Mittel | B27: =ROUND(AVERAGE(B3:B26),1) -> 0.8 | C27: =ROUND(AVERAGE(C3:C26),1) -> 97.8 | D27: =ROUND(AVERAGE(D3:D26),1) -> 1029.4 | E27: =AVERAGE(E3:E26) -> 0.6125 | F27: =ROUND(AVERAGE(F3:F26),1) -> 8 | H27: Mittel | I27: =ROUND(AVERAGE(I3:I26),1) -> 0.7 | J27: =ROUND(AVERAGE(J3:J26),1) -> 97 | K27: =ROUND(AVERAGE(K3:K26),1) -> 1031 | L27: =AVERAGE(L3:L26) -> 0.3416666667 | M27: =ROUND(AVERAGE(M3:M26),1) -> 8
E29: 2013-02-26 | L29: 2013-02-27
A32: Stunde | B32: Wind | C32: Luftfeuchtigkeit | D32: Luftdruck | E32: Taupunkttemperatur | F32: Bewölkung | H32: Stunde | I32: Wind | J32: Luftfeuchtigkeit | K32: Luftdruck | L32: Taupunkttemperatur | M32: Bewölkung
A33: 00 | B33: 0 | C33: 99 | D33: 1031.3 | E33: 0.8 | F33: 8 | H33: 00 | I33: 0 | J33: 98 | K33: 1016.6 | L33: 0.7 | M33: 8
A34: 01 | B34: 0 | C34: 98 | D34: 1031.3 | E34: 0.6 | F34: 8 | H34: 01 | I34: 0 | J34: 98 | K34: 1016.6 | L34: 0.7 | M34: 8
A35: 02 | B35: 0 | C35: 99 | D35: 1030.9 | E35: 0.7 | F35: 8 | H35: 02 | I35: 0 | J35: 98 | K35: 1016.4 | L35: 0.7 | M35: 8
A36: 03 | B36: 0 | C36: 99 | D36: 1030.4 | E36: 0.7 | F36: 8 | H36: 03 | I36: 0 | J36: 98 | K36: 1016.2 | L36: 0.7 | M36: 8
A37: 04 | B37: 0 | C37: 99 | D37: 1029.9 | E37: 0.6 | F37: 8 | H37: 04 | I37: 0 | J37: 98 | K37: 1016.5 | L37: 0.7 | M37: 8
A38: 05 | B38: 0 | C38: 99 | D38: 1029.6 | E38: 0.5 | F38: 8 | H38: 05 | I38: 0 | J38: 98 | K38: 1016.6 | L38: 0.7 | M38: 8
A39: 06 | B39: 0 | C39: 99 | D39: 1029.3 | E39: 0.5 | F39: 8 | H39: 06 | I39: 1 | J39: 99 | K39: 1017.1 | L39: 0.8 | M39: 8
A40: 07 | B40: 0 | C40: 99 | D40: 1029.1 | E40: 0.5 | F40: 8 | H40: 07 | I40: 0 | J40: 98 | K40: 1017.4 | L40: 0.6 | M40: 8
A41: 08 | B41: 0 | C41: 99 | D41: 1029.3 | E41: 0.6 | F41: 8 | H41: 08 | I41: 0 | J41: 99 | K41: 1018 | L41: 0.9 | M41: 8
A42: 09 | B42: 0 | C42: 99 | D42: 1029.1 | E42: 0.8 | F42: 8 | H42: 09 | I42: 0 | J42: 99 | K42: 1018.3 | L42: 1.1 | M42: 8
A43: 10 | B43: 0 | C43: 99 | D43: 1028.9 | E43: 1.2 | F43: 8 | H43: 10 | I43: 0 | J43: 98 | K43: 1018.9 | L43: 1.2 | M43: 8
A44: 11 | B44: 0 | C44: 96 | D44: 1028.7 | E44: 1.4 | F44: 8 | H44: 11 | I44: 0 | J44: 97 | K44: 1019.5 | L44: 1.4 | M44: 8
A45: 12 | B45: 0 | C45: 94 | D45: 1028.2 | E45: 1.6 | F45: 8 | H45: 12 | I45: 0 | J45: 97 | K45: 1020.1 | L45: 1.8 | M45: 8
A46: 13 | B46: 0 | C46: 91 | D46: 1027.6 | E46: 1.6 | F46: 8 | H46: 13 | I46: 0 | J46: 97 | K46: 1020.4 | L46: 1.9 | M46: 8
A47: 14 | B47: 0 | C47: 89 | D47: 1026.9 | E47: 1.6 | F47: 8 | H47: 14 | I47: 0 | J47: 97 | K47: 1020.9 | L47: 2.1 | M47: 8
A48: 15 | B48: 0 | C48: 88 | D48: 1026.3 | E48: 1.6 | F48: 8 | H48: 15 | I48: 0 | J48: 95 | K48: 1021.3 | L48: 2.5 | M48: 8
A49: 16 | B49: 0 | C49: 89 | D49: 1025.9 | E49: 1.4 | F49: 8 | H49: 16 | I49: 1 | J49: 95 | K49: 1021.8 | L49: 2.2 | M49: 8
A50: 17 | B50: 0 | C50: 86 | D50: 1025.2 | E50: 0.9 | F50: 8 | H50: 17 | I50: 0 | J50: 96 | K50: 1022.5 | L50: 2 | M50: 8
A51: 18 | B51: 1 | C51: 86 | D51: 1025.1 | E51: 0.6 | F51: 8 | H51: 18 | I51: 1 | J51: 97 | K51: 1023.2 | L51: 2 | M51: 8
A52: 19 | B52: 0 | C52: 89 | D52: 1025 | E52: 0.5 | F52: 8 | H52: 19 | I52: 1 | J52: 97 | K52: 1023.9 | L52: 1.6 | M52: 8
A53: 20 | B53: 0 | C53: 90 | D53: 1024.6 | E53: 0.5 | F53: 8 | H53: 20 | I53: 0 | J53: 97 | K53: 1024.6 | L53: 1.5 | M53: 8
A54: 21 | B54: 1 | C54: 90 | D54: 1024.3 | E54: 0.3 | F54: 8 | H54: 21 | I54: 0 | J54: 97 | K54: 1025.5 | L54: 1.4 | M54: 8
A55: 22 | B55: 1 | C55: 90 | D55: 1024.4 | E55: 0 | F55: 8 | H55: 22 | I55: 0 | J55: 98 | K55: 1026.1 | L55: 1.4 | M55: 8
A56: 23 | B56: 1 | C56: 90 | D56: 1024.2 | E56: -0.1 | F56: 8 | H56: 23 | I56: 1 | J56: 98 | K56: 1026.5 | L56: 1.3 | M56: 8
A57: Mittel | B57: =ROUND(AVERAGE(B33:B56),1) -> 0.2 | C57: =ROUND(AVERAGE(C33:C56),1) -> 94 | D57: =ROUND(AVERAGE(D33:D56),1) -> 1027.7 | E57: =AVERAGE(E33:E56) -> 0.8083333333 | F57: =ROUND(AVERAGE(F33:F56),1) -> 8 | H57: Mittel | I57: =ROUND(AVERAGE(I33:I56),1) -> 0.2 | J57: =ROUND(AVERAGE(J33:J56),1) -> 97.5 | K57: =ROUND(AVERAGE(K33:K56),1) -> 1020.2 | L57: =AVERAGE(L33:L56) -> 1.329166667 | M57: =ROUND(AVERAGE(M33:M56),1) -> 8
E59: 2013-02-28 | L59: 2013-02-25

Sheet Kurztab.
A2: Wetterwarte: Köttewitz | L2: Monat: | M2: Februar | Y2: Jahr: | Z2: 2013
A4: Dat. | B4: TTT | C4: TxTx | D4: TnTn | E4: Tg | F4: Umin. | G4: UU | H4: NN | I4: RRRR | J4: Art | L4: sss | M4: PPPP | N4: eee | O4: fff | R4: Tage mit | V4: fk
J5: * | O5: Bft | P5: SS | Q5: Art ( D ) | R5: NE | S5: Ge | T5: Bf6 | U5: Bf8 | V5: Bft
A6: 01. | B6: 5.6 | C6: 8.1 | D6: 3.9 | E6: 2.6 | F6: 66 | G6: 78 | H6: 7 | I6: 0.2 | J6: R | L6: 0 | M6: 1003.3 | N6: 2 | O6: 2 | R6: 1 | V6: 5 | AA6: max >=30,0°C | AB6: max >=25,0°C | AC6: max <0,0°C | AE6: RR >=0,1 mm | AF6: RR >=1,0 mm | AG6: RR >=3,0 mm | AH6: RR >=10,0 mm
A7: 02. | B7: 2.1 | C7: 4.3 | D7: -0.2 | E7: -1.1 | F7: 81 | G7: 91 | H7: 7.8 | I7: 3.6 | J7: R | L7: 0 | M7: 996.7 | N7: 0.9 | O7: 1 | R7: 1 | V7: 4 | AA7: =COUNTIF(C6:C15,">=30") -> 0 | AB7: =COUNTIF(C6:C15,">=25") -> 0 | AC7: =COUNTIF(C6:C15,"<0") -> 1 | AE7: =COUNTIF(I6:I15,">=0,1") -> 8 | AF7: =COUNTIF(I6:I15,">=1") -> 3 | AG7: =COUNTIF(I6:I15,">=3") -> 2 | AH7: =COUNTIF(I6:I15,">=10") -> 0
A8: 03. | B8: 0.5 | C8: 2.3 | D8: -1.9 | E8: -3.4 | F8: 74 | G8: 84 | H8: 6.9 | I8: 0.4 | J8: R | L8: 0 | M8: 1012.1 | N8: -2 | O8: 1 | R8: 1 | V8: 5 | AA8: =COUNTIF(C18:C27,">=30") -> 0 | AB8: =COUNTIF(C18:C27,">=25") -> 0 | AC8: =COUNTIF(C18:C27,"<0") -> 3 | AE8: =COUNTIF(I18:I27,">=0,1") -> 6 | AF8: =COUNTIF(I18:I27,">=1") -> 5 | AG8: =COUNTIF(I18:I27,">=3") -> 2 | AH8: =COUNTIF(I18:I27,">=10") -> 1
A9: 04. | B9: 3.9 | C9: 6.1 | D9: 1 | E9: 0 | F9: 82 | G9: 88 | H9: 7.3 | I9: 3.8 | J9: R | L9: 0 | M9: 1006.4 | N9: 2 | O9: 2 | R9: 1 | V9: 5 | AA9: =COUNTIF(C30:C37,">=30") -> 0 | AB9: =COUNTIF(C30:C37,">=25") -> 0 | AC9: =COUNTIF(C30:C37,"<0") -> 3 | AE9: =COUNTIF(I30:I37,">=0,1") -> 7 | AF9: =COUNTIF(I30:I37,">=1") -> 3 | AG9: =COUNTIF(I30:I37,">=3") -> 3 | AH9: =COUNTIF(I30:I37,">=10") -> 1
A10: 05. | B10: 4.4 | C10: 8.3 | D10: 0.3 | E10: -1.8 | F10: 57 | G10: 75 | H10: 6 | I10: 0.2 | J10: R | L10: 1.3 | M10: 1001.3 | N10: 0.4 | O10: 1 | R10: 1 | V10: 5
A11: 06. | B11: -0.1 | C11: 3.9 | D11: -4.3 | E11: -6.3 | F11: 56 | G11: 80 | H11: 6.6 | I11: 1.8 | J11: R | L11: 2.2 | M11: 999.7 | N11: -3.3 | O11: 1 | R11: 1 | V11: 3 | AA11: min <0,0°C | AB11: min <0-10,0°C | AE11: rel.Lf. 14h >=70% | AG11: rel.Lf. 14h <=40%
A12: 07. | B12: -1.9 | C12: 2.7 | D12: -6.4 | E12: -7.9 | F12: 77 | G12: 90 | H12: 7.6 | I12: 0.7 | J12: S | L12: 0.7 | M12: 1006.8 | N12: -3.4 | O12: 1 | P12: 1 | Q12: V | R12: 1 | V12: 3 | AA12: =COUNTIF(D6:D15,"<0") -> 7 | AB12: =COUNTIF(D6:D15,"<=-10") -> 0 | AE12: =COUNTIF(F6:F15,">=70") -> 6 | AG12: =COUNTIF(F6:F15,"<=40") -> 0
A13: 08. | B13: -1.3 | C13: 1 | D13: -3.5 | E13: -5 | F13: 75 | G13: 88 | H13: 7.4 | I13: 0.9 | J13: S | L13: 4.5 | M13: 1011.9 | N13: -3 | O13: 1 | P13: 3 | Q13: D | R13: 1 | V13: 3 | AA13: =COUNTIF(D18:D27,"<0") -> 10 | AB13: =COUNTIF(D18:D27,"<=-10") -> 0 | AE13: =COUNTIF(F18:F27,">=70") -> 10 | AG13: =COUNTIF(F18:F27,"<=40") -> 0
A14: 09. | B14: -1.7 | C14: 0.8 | D14: -4.3 | E14: -5.6 | F14: 65 | G14: 82 | H14: 6.7 | I14: 0 | J14: S | L14: 1.5 | M14: 1017.3 | N14: -4.4 | O14: 1 | P14: 3 | Q14: D | R14: 1 | V14: 3 | AA14: =COUNTIF(D30:D37,"<0") -> 4 | AB14: =COUNTIF(D30:D37,"<=-10") -> 0 | AE14: =COUNTIF(F30:F37,">=70") -> 8 | AG14: =COUNTIF(F30:F37,"<=40") -> 0
A15: 10. | B15: -4.3 | C15: -0.5 | D15: -8.1 | E15: -8.9 | F15: 70 | G15: 85 | H15: 7 | I15: 0 | L15: 3 | M15: 1017.3 | N15: -6.3 | O15: 1 | P15: 3 | Q15: D | V15: 2
A16: Su | B16: =SUM(B6:B15) -> 7.2 | C16: =SUM(C6:C15) -> 37 | D16: =SUM(D6:D15) -> -23.5 | E16: =SUM(E6:E15) -> -37.4 | F16: XXX | G16: =SUM(G6:G15) -> 841 | H16: =SUM(H6:H15) -> 70.3 | I16: =SUM(I6:I15) -> 11.6 | J16: =SUM(K6:K15) -> 0 | L16: =SUM(L6:L15) -> 13.2 | M16: =SUM(M6:M15) -> 10072.8 | N16: =SUM(N6:N15) -> -17.1 | O16: XXX | P16: =COUNT(P6:P15) -> 4 | Q16: X | R16: =SUM(R6:R15) -> 9 | S16: =SUM(S6:S15) -> 0 | T16: =SUM(T6:T15) -> 0 | U16: =SUM(U6:U15) -> 0 | V16: XXX | AA16: ohne Sonne | AB16: Son. 0,1-0,9 | AC16: Son. >=10,0 | AE16: Sch. >=1 cm | AF16: Sch. >=3 cm | AG16: Sch. >=10 cm
A17: Mi | B17: =SUM(B16/10) -> 0.72 | C17: =AVERAGE(C16/10) -> 3.7 | D17: =AVERAGE(D16/10) -> -2.35 | E17: =E16/10 -> -3.74 | F17: XXX | G17: =AVERAGE(G16/10) -> 84.1 | H17: =AVERAGE(H16/10) -> 7.03 | I17: XXXXX | J17: XX | L17: XXXX | M17: =AVERAGE(M16/10) -> 1007.28 | N17: =AVERAGE(N16/10) -> -1.71 | O17: XXX | P17: XXX | Q17: X | R17: XX | S17: XX | T17: XX | U17: XX | V17: XXX | AA17: =COUNTIF(L6:L15,".") -> 0 | AB17: =COUNTIF(L6:L15,"<1") -> 5 | AC17: =COUNTIF(L6:L15,">=10") -> 0 | AE17: =COUNTIF(P6:P15,">=1") -> 4 | AF17: =COUNTIF(P6:P15,">=3") -> 3 | AG17: =COUNTIF(P6:P15,">=10") -> 0
A18: 11. | B18: -3.4 | C18: -0.2 | D18: -8.3 | E18: -9.4 | F18: 74 | G18: 83 | H18: 6.8 | I18: 0 | L18: 0.2 | M18: 1011.1 | N18: -6.1 | O18: 1 | P18: 2 | Q18: V | V18: 4 | AA18: =COUNTIF(L18:L27,".") -> 0 | AB18: =COUNTIF(L18:L27,"<1") -> 10 | AC18: =COUNTIF(L18:L27,">=10") -> 0 | AE18: =COUNTIF(P18:P27,">=1") -> 10 | AF18: =COUNTIF(P18:P27,">=3") -> 9 | AG18: =COUNTIF(P18:P27,">=10") -> 2
A19: 12. | B19: -2.1 | C19: -1.4 | D19: -2.4 | E19: -3.4 | F19: 78 | G19: 89 | H19: 7.4 | I19: 3.5 | J19: S | L19: 0 | M19: 1011.7 | N19: -3.7 | O19: 1 | P19: 6 | Q19: * | R19: 1 | V19: 3 | AA19: =COUNTIF(L30:L37,".") -> 0 | AB19: =COUNTIF(L30:L37,"<1") -> 8 | AC19: =COUNTIF(L30:L37,">=10") -> 0 | AE19: =COUNTIF(P30:P37,">=1") -> 8 | AF19: =COUNTIF(P30:P37,">=3") -> 8 | AG19: =COUNTIF(P30:P37,">=10") -> 7
A20: 13. | B20: -1.7 | C20: -0.3 | D20: -2.5 | E20: -1.7 | F20: 89 | G20: 94 | H20: 8 | I20: 2.3 | J20: S | L20: 0 | M20: 1022.6 | N20: -2.6 | O20: 1 | P20: 9 | Q20: * | R20: 1 | V20: 3
A21: 14. | B21: -1.7 | C21: 0.3 | D21: -2.8 | E21: -2.8 | F21: 84 | G21: 93 | H21: 8 | I21: 0 | L21: 0 | M21: 1025 | N21: -2.7 | O21: 0 | P21: 9 | Q21: * | V21: 2 | AA21: Max TT | AB21: Max TxTx | AC21: Min TgTg | AE21: Max RR
A22: 15. | B22: -0.7 | C22: 1.4 | D22: -2.9 | E22: -2.8 | F22: 88 | G22: 92 | H22: 7.9 | I22: 0 | L22: 0 | M22: 1019.8 | N22: -1.9 | O22: 0 | P22: 8 | Q22: * | V22: 1 | AA22: =MAX(B6:B15,B18:B27,B30:B37) -> 5.6 | AB22: =MAX(C6:C15,C18:C27,C30:C37) -> 8.3 | AC22: =MIN(E6:E15,E18:E27,E30:E37) -> -9.4 | AE22: =MAX(I6:I15,I18:I27,I30:I37) -> 12.7
A23: 16. | B23: 0.3 | C23: 1.8 | D23: -0.9 | E23: -1.1 | F23: 92 | G23: 95 | H23: 8 | I23: 1.1 | J23: S | L23: 0 | M23: 1023.9 | N23: -0.4 | O23: 0 | P23: 6 | Q23: D | R23: 1 | V23: 1 | AA23: Min TT | AB23: Min TnTn | AC23: Min U14 | AE23: Max SS
A24: 17. | B24: 0.4 | C24: 1.4 | D24: -0.2 | E24: -0.6 | F24: 93 | G24: 96 | H24: 8 | I24: 0.4 | J24: S | L24: 0 | M24: 1025.2 | N24: -0.1 | O24: 0 | P24: 4 | Q24: V | R24: 1 | V24: 2 | AA24: =MIN(B6:B15,B18:B27,B30:B37) -> -4.6 | AB24: =MIN(D6:D15,D18:D27,D30:D37) -> -8.3 | AC24: =MIN(F6:F15,F18:F27,F30:F37) -> 56 | AE24: =MAX(P6:P15,P18:P27,P30:P37) -> 32
A25: 18. | B25: 0.1 | C25: 1.2 | D25: -0.7 | E25: -1.1 | F25: 81 | G25: 91 | H25: 8 | I25: 0 | L25: 0 | M25: 1022.6 | N25: -1.3 | O25: 0 | P25: 6 | Q25: D | V25: 3
A26: 19. | B26: 0.1 | C26: 1.4 | D26: -1.2 | E26: -1.1 | F26: 83 | G26: 92 | H26: 8 | I26: 10.4 | J26: S | L26: 0 | M26: 1013.8 | N26: -1 | O26: 1 | P26: 10 | Q26: * | R26: 1 | V26: 4
A27: 20. | B27: -1.6 | C27: 0.2 | D27: -3.1 | E27: -1.1 | F27: 84 | G27: 93 | H27: 7.9 | I27: 2.5 | J27: S | L27: 0.1 | M27: 1019.5 | N27: -2.6 | O27: 1 | P27: 14 | Q27: * | R27: 1 | V27: 3
A28: Su | B28: =SUM(B18:B27) -> -10.3 | C28: =SUM(C18:C27) -> 5.8 | D28: =SUM(D18:D27) -> -25 | E28: XXXX | F28: XXX | G28: =SUM(G18:G27) -> 918 | H28: =SUM(H18:H27) -> 78 | I28: =SUM(I18:I27) -> 20.2 | J28: =SUM(K18:K27) -> 0 | L28: =SUM(L18:L27) -> 0.3 | M28: =SUM(M18:M27) -> 10195.2 | N28: =SUM(N18:N27) -> -22.4 | O28: XXX | P28: =COUNT(P18:P27) -> 10 | Q28: X | R28: =SUM(R18:R27) -> 6 | S28: =SUM(S18:S27) -> 0 | T28: =SUM(T18:T27) -> 0 | U28: =SUM(U18:U27) -> 0 | V28: XXX
A29: Mi | B29: =AVERAGE(B28/10) -> -1.03 | C29: =AVERAGE(C28/10) -> 0.58 | D29: =AVERAGE(D28/10) -> -2.5 | E29: XXXX | F29: XXX | G29: =AVERAGE(G28/10) -> 91.8 | H29: =AVERAGE(H28/10) -> 7.8 | I29: XXXXX | J29: XX | L29: XXXX | M29: =AVERAGE(M28/10) -> 1019.52 | N29: =AVERAGE(N28/10) -> -2.24 | O29: XXX | P29: XXX | Q29: X | R29: XX | S29: XX | T29: XX | U29: XX | V29: XXX
A30: 21. | B30: -4.1 | C30: -2.7 | D30: -5.2 | E30: -1.7 | F30: 84 | G30: 91 | H30: 8 | I30: 0.5 | J30: S | L30: 0 | M30: 1022 | N30: -5.2 | O30: 1 | P30: 15 | Q30: * | R30: 1 | V30: 3
A31: 22. | B31: -4.6 | C31: -3.8 | D31: -5.7 | E31: -1.7 | F31: 82 | G31: 90 | H31: 8 | I31: 0.4 | J31: S | L31: 0 | M31: 1018.9 | N31: -6.1 | O31: 1 | P31: 15 | Q31: * | R31: 1 | V31: 4
A32: 23. | B32: -2.9 | C32: -1.3 | D32: -4.5 | E32: -0.6 | F32: 94 | G32: 93 | H32: 8 | I32: 12.7 | J32: S | L32: 0 | M32: 1012.1 | N32: -4 | O32: 1 | P32: 27 | Q32: * | R32: 1 | V32: 3
A33: 24. | B33: 0.2 | C33: 1.8 | D33: -1.7 | E33: -1.7 | F33: 94 | G33: 96 | H33: 8 | I33: 3.2 | J33: S | L33: 0 | M33: 1012.9 | N33: -0.4 | O33: 0 | P33: 32 | Q33: * | R33: 1 | V33: 1
A34: 25. | B34: 1.7 | C34: 3.4 | D34: 0.8 | E34: 0 | F34: 94 | G34: 97 | H34: 8 | I34: 3.7 | J34: R | L34: 0 | M34: 1020.2 | N34: 1.3 | O34: 0 | P34: 18 | Q34: * | R34: 1 | V34: 2
A35: 26. | B35: 0.9 | C35: 1.6 | D35: 0.3 | E35: 0 | F35: 97 | G35: 98 | H35: 8 | I35: 0.7 | J35: R | L35: 0 | M35: 1029.4 | N35: 0.6 | O35: 1 | P35: 13 | Q35: * | R35: 1 | V35: 3
A36: 27. | B36: 0.8 | C36: 1.7 | D36: 0.1 | E36: 0 | F36: 94 | G36: 97 | H36: 8 | I36: 0.2 | J36: R | L36: 0 | M36: 1031 | N36: 0.3 | O36: 1 | P36: 11 | Q36: * | R36: 1 | V36: 2
A37: 28. | B37: 1.7 | C37: 3.6 | D37: 0.6 | E37: 0 | F37: 85 | G37: 94 | H37: 8 | I37: 0 | L37: 0 | M37: 1027.7 | N37: 0.8 | O37: 0 | P37: 8 | Q37: * | V37: 3
A38: Su | B38: =SUM(B30:B37) -> -6.3 | C38: =SUM(C30:C37) -> 4.3 | D38: =SUM(D30:D37) -> -15.3 | E38: XXXX | F38: XXX | G38: =SUM(G30:G37) -> 756 | H38: =SUM(H30:H37) -> 64 | I38: =SUM(I30:I37) -> 21.4 | J38: =SUM(K30:K37) -> 0 | L38: =SUM(L30:L37) -> 0 | M38: =SUM(M30:M37) -> 8174.2 | N38: =SUM(N30:N37) -> -12.7 | O38: XXX | P38: =COUNT(P30:P37) -> 8 | Q38: X | R38: =SUM(R30:R37) -> 7 | S38: =SUM(S30:S37) -> 0 | T38: =SUM(T30:T37) -> 0 | U38: =SUM(U30:U37) -> 0 | V38: XXX
A39: Mi | B39: =AVERAGE(B38/8) -> -0.7875 | C39: =AVERAGE(C38/8) -> 0.5375 | D39: =AVERAGE(D38/8) -> -1.9125 | E39: XXXX | F39: XXX | G39: =AVERAGE(G38/8) -> 94.5 | H39: =AVERAGE(H38/8) -> 8 | I39: XXXXX | J39: XX | L39: XXXX | M39: =AVERAGE(M38/8) -> 1021.775 | N39: =AVERAGE(N38/8) -> -1.5875 | O39: XXX | P39: XXX | Q39: X | R39: XX | S39: XX | T39: XX | U39: XX | V39: XXX
A40: MSu | B40: =SUM(B16+B28+B38) -> -9.4 | C40: =SUM(C16+C28+C38) -> 47.1 | D40: =SUM(D16+D28+D38) -> -63.8 | E40: XXXX | F40: XXX | G40: =SUM(G16+G28+G38) -> 2515 | H40: =SUM(H16+H28+H38) -> 212.3 | I40: =SUM(I16+I28+I38) -> 53.2 | J40: =SUM(J16+J28+J38) -> 0 | L40: =SUM(L16+L28+L38) -> 13.5 | M40: =SUM(M16+M28+M38) -> 28442.2 | N40: =SUM(N16+N28+N38) -> -52.2 | O40: XXX | P40: =SUM(P16+P28+P38) -> 22 | Q40: X | R40: =SUM(R16+R28+R38) -> 22 | S40: =SUM(S16+S28+S38) -> 0 | T40: =SUM(T16+T28+T38) -> 0 | U40: =SUM(U16+U28+U38) -> 0 | V40: XXX
A41: MMi | B41: =AVERAGE(B17,B29,B39) -> -0.3658333333 | C41: =AVERAGE(C40/28) -> 1.682142857 | D41: =AVERAGE(D40/28) -> -2.278571429 | E41: XXXX | F41: XXX | G41: =AVERAGE(G40/28) -> 89.82142857 | H41: =AVERAGE(H40/28) -> 7.582142857 | I41: XXXXX | J41: XX | L41: XXXX | M41: =AVERAGE(M40/28) -> 1015.792857 | N41: =AVERAGE(N40/28) -> -1.864285714 | O41: XXX | P41: XXX | Q41: X | R41: XX | S41: XX | T41: XX | U41: XX | V41: XXX
B43: Norm | C43: % v N.- | D43: Abw. | E43: Zahl der Tage | L43: Niederschlag mm | P43: Sonnensch.-dauer Std
B44: wert | C44: wert | D44: K | E44: Max.d.Lufttemp.°C | L44: >/= 0,1 | O44: =SUM(AE7:AE9) -> 21 | P44: ohne Sonne | V44: 20
A45: TTT | B45: 0.9 | C45: XXXX | D45: =SUM(B41-B45) -> -1.265833333 | E45: Tropentag/Hitzetag | I45: =SUM(AA7:AA9) -> 0 | L45: >/= 1,0 | O45: =SUM(AF7:AF9) -> 11 | P45: 0,1 bis 0,9 | V45: 3
A46: RRR | B46: 35 | C46: =SUM(I40*100/B46) -> 152 | D46: XXXX | E46: Sommertag | I46: =SUM(AB7:AB9) -> 0 | L46: >/= 3,0 | O46: =SUM(AG7:AG9) -> 7 | P46: >/= 10,0 | V46: =SUM(AC17:AC19) -> 0
A47: sss | B47: 77 | C47: =SUM(L40*100/B47) -> 17.53246753 | D47: XXXX | E47: Eistag | I47: =SUM(AC7:AC9) -> 7 | L47: >/=10,0 | O47: =SUM(AH7:AH9) -> 2 | P47: Schneedecke cm
A48: astr. | D48: XXXX | E48: Min.d.Lufttemp.°C | L48: >/= 20,0 | O48: 0 | P48: >/= 1 | V48: =SUM(AE17:AE19) -> 22
A49: mgl. | B49: 266 | C49: =SUM(L40*100/B49) -> 5.07518797 | D49: XXXX | E49: Frosttag | I49: =SUM(AA12:AA14) -> 21 | L49: Rel. Luftfeuchte 14 Uhr | P49: >/= 3 | V49: =SUM(AF17:AF19) -> 20
A50: sss | D50: XXXX | E50: starker Eistag | I50: =SUM(AB12:AB14) -> 0 | L50: >/=70% | O50: =SUM(AE12:AE14) -> 24 | P50: >/= 10 | V50: =SUM(AG17:AG19) -> 9
L51: </=40% | O51: =SUM(AG12:AG14) -> 0

Sheet Sichtst.
E1: Sichtweitenstatistik
B5: Wetterstation: Köttewitz | F5: Monat: | G5: Februar | K5: Jahr: | L5: 2013
A7: Dat. | B7: Nebeldauer | C7: Nebel | D7: Dunst | E7: Sicht | F7: Sicht | G7: Sicht | H7: Sicht
B8: in St. u. Min. | E8: mittel | F8: normal | G8: gut | H8: sehr gut
A9: 01. | B9: - | C9: =IF(R9=1,1,"-") -> - | D9: =IF(R9=2,1,"-") -> - | E9: =IF(R9=3,1,"-") -> - | F9: 1 | G9: - | H9: - | N9: =IF(ISNUMBER(B9),B9*24," ") ->  | O9: =IF(ISNUMBER(N9),IF(N9<1,1," ")," ") ->  | P9: =IF(ISNUMBER(N9),IF(N9<8,2," ")," ") ->  | Q9: =IF(ISNUMBER(N9),IF(N9<24,3," ")," ") ->  | R9: =MIN(O9:Q9) -> 0
A10: 02. | B10: - | C10: - | D10: 1 | E10: - | F10: - | G10: - | H10: - | R10: 0
A11: 03. | B11: - | C11: - | D11: - | E11: 1 | F11: - | G11: - | H11: - | R11: 0
A12: 04. | B12: - | C12: - | D12: - | E12: 1 | F12: - | G12: - | H12: - | R12: 0
A13: 05. | B13: - | C13: - | D13: - | E13: - | F13: 1 | G13: - | H13: - | R13: 0
A14: 06. | B14: - | C14: - | D14: - | E14: - | F14: 1 | G14: - | H14: - | R14: 0
A15: 07. | B15: - | C15: - | D15: - | E15: 1 | F15: - | G15: - | H15: - | R15: 0
A16: 08. | B16: - | C16: - | D16: - | E16: 1 | F16: - | G16: - | H16: - | R16: 0
A17: 09. | B17: - | C17: - | D17: - | E17: - | F17: 1 | G17: - | H17: - | R17: 0
A18: 10. | B18: - | C18: - | D18: - | E18: - | F18: 1 | G18: - | H18: - | R18: 0
A19: 11. | B19: - | C19: - | D19: - | E19: 1 | F19: - | G19: - | H19: - | R19: 0
A20: 12. | B20: - | C20: - | D20: 1 | E20: - | F20: - | G20: - | H20: - | R20: 0
A21: 13. | B21: - | C21: - | D21: 1 | E21: - | F21: - | G21: - | H21: - | R21: 0
A22: 14. | B22: - | C22: - | D22: 1 | E22: - | F22: - | G22: - | H22: - | R22: 0
A23: 15. | B23: - | C23: - | D23: 1 | E23: - | F23: - | G23: - | H23: - | R23: 0
A24: 16. | B24: 02:00:00 | C24: 1 | D24: 1 | E24: - | F24: - | G24: - | H24: - | N24: 2 | P24: 2 | Q24: 3 | R24: 2
A25: 17. | B25: - | C25: - | D25: 1 | E25: - | F25: - | G25: - | H25: - | R25: 0
A26: 18. | B26: - | C26: - | D26: 1 | E26: - | F26: - | G26: - | H26: - | R26: 0
A27: 19. | B27: - | C27: - | D27: 1 | E27: 1 | F27: - | G27: - | H27: - | R27: 0
A28: 20. | B28: - | C28: - | D28: 1 | E28: - | F28: - | G28: - | H28: - | R28: 0
A29: 21. | B29: - | C29: - | D29: 1 | E29: 1 | F29: - | G29: - | H29: - | R29: 0
A30: 22. | B30: 01:15:00 | C30: 1 | D30: 1 | E30: 1 | F30: - | G30: - | H30: - | N30: 1.25 | P30: 2 | Q30: 3 | R30: 2
A31: 23. | B31: - | C31: - | D31: 1 | E31: - | F31: - | G31: - | H31: - | R31: 0
A32: 24. | B32: 10:00:00 | C32: 1 | D32: 1 | E32: - | F32: - | G32: - | H32: - | N32: 10 | Q32: 3 | R32: 3
A33: 25. | B33: - | C33: - | D33: 1 | E33: - | F33: - | G33: - | H33: - | R33: 0
A34: 26. | B34: 02:00:00 | C34: 1 | D34: 1 | E34: 1 | F34: - | G34: - | H34: - | N34: 2 | P34: 2 | Q34: 3 | R34: 2
A35: 27. | B35: - | C35: 1 | D35: 1 | E35: - | F35: - | G35: - | H35: - | R35: 0
A36: 28. | B36: - | C36: =IF(R36=1,1,"-") -> - | D36: 1 | E36: 1 | F36: - | G36: - | H36: - | N36: =IF(ISNUMBER(B36),B36*24," ") ->  | O36: =IF(ISNUMBER(N36),IF(N36<1,1," ")," ") ->  | P36: =IF(ISNUMBER(N36),IF(N36<8,2," ")," ") ->  | Q36: =IF(ISNUMBER(N36),IF(N36<24,3," ")," ") ->  | R36: =MIN(O36:Q36) -> 0
A37: Su. | B37: XXXXXXXXX | C37: =SUM(C9:C36) -> 5 | D37: 18 | E37: 10 | F37: 5 | G37: 0 | H37: 0
B39: Anzahl der Nebeltage : | E39: =SUM(C37) -> 5
B40: Anzahl der Tage Sicht >= 50 km : | E40: =SUM(G37,H37) -> 0

Sheet Monatsdiagramm
A1: Klimadiagramm | C1: Wetterstation Köttewitz | I1: (213 m ü. NHN)
A3: Februar 2013
C5: aktuell | D5: langj. Mittel | E5: Abw. vom lj. Mittel
B6: höchste Temperatur (°C): | C6: =MAX('Daten für Diagr.'!C2:C29) -> 8.3 | D6: am | E6: 2013-02-05
B7: mittlere Temperatur (°C): | C7: =Kurztab.!B41 -> -0.3658333333 | D7: =Kurztab.!B45 -> 0.9 | E7: =C7-D7 -> -1.265833333 | F7: K
B8: tiefste Temperatur (°C): | C8: =MIN('Daten für Diagr.'!D2:D29) -> -8.3 | D8: am | E8: 2013-02-11
B9: Niederschlagshöhe (mm): | C9: =Kurztab.!I40 -> 53.2 | D9: =Kurztab.!B46 -> 35 | E9: =100/D9*C9 -> 152 | F9: %
B10: Sonnenscheindauer (Std.): | C10: =Kurztab.!L40 -> 13.5 | D10: =Kurztab.!B47 -> 77 | E10: =100/D10*C10 -> 17.53246753 | F10: %

Sheet Daten für Diagr.
B1: Td | C1: Tmax | D1: Tmin | E1: RR | F1: Schnee | G1: Sonne | H1: Luftdr. | I1: MWT | J1: GWL | K1: Name | L1: Sonstiges
A2: 2013-02-01 | B2: 5.6 | C2: 8.1 | D2: 3.9 | E2: 0.2 | G2: 0 | H2: 1003.3 | I2: 0.4
A3: 2013-02-02 | B3: 2.1 | C3: 4.3 | D3: -0.2 | E3: 3.6 | G3: 0 | H3: 996.7 | I3: 0.45 | J3: Wz | K3: T Norfried
A4: 2013-02-03 | B4: 0.5 | C4: 2.3 | D4: -1.9 | E4: 0.4 | G4: 0 | H4: 1012.1 | I4: 0.45
A5: 2013-02-04 | B5: 3.9 | C5: 6.1 | D5: 1 | E5: 3.8 | G5: 0 | H5: 1006.4 | I5: 0.5
A6: 2013-02-05 | B6: 4.4 | C6: 8.3 | D6: 0.3 | E6: 0.2 | G6: 1.3 | H6: 1001.3 | I6: 0.5
A7: 2013-02-06 | B7: -0.1 | C7: 3.9 | D7: -4.3 | E7: 1.8 | F7: 0 | G7: 2.2 | H7: 999.7 | I7: 0.55
A8: 2013-02-07 | B8: -1.9 | C8: 2.7 | D8: -6.4 | E8: 0.7 | F8: 1 | G8: 0.7 | H8: 1006.8 | I8: 0.55 | J8: NEz | K8: T Quenten 2
A9: 2013-02-08 | B9: -1.3 | C9: 1 | D9: -3.5 | E9: 0.9 | F9: 3 | G9: 4.5 | H9: 1011.9 | I9: 0.6
A10: 2013-02-09 | B10: -1.7 | C10: 0.8 | D10: -4.3 | F10: 3 | G10: 1.5 | H10: 1017.3 | I10: 0.6
A11: 2013-02-10 | B11: -4.3 | C11: -0.5 | D11: -8.1 | F11: 3 | G11: 3 | H11: 1017.3 | I11: 0.65
A12: 2013-02-11 | B12: -3.4 | C12: -0.2 | D12: -8.3 | F12: 2 | G12: 0.2 | H12: 1011.1 | I12: 0.65 | J12: HFz | K12: H Doris
A13: 2013-02-12 | B13: -2.1 | C13: -1.4 | D13: -2.4 | E13: 3.5 | F13: 6 | G13: 0 | H13: 1011.7 | I13: 0.7
A14: 2013-02-13 | B14: -1.7 | C14: -0.3 | D14: -2.5 | E14: 2.3 | F14: 9 | G14: 0 | H14: 1022.6 | I14: 0.7 | J14: HM
A15: 2013-02-14 | B15: -1.7 | C15: 0.3 | D15: -2.8 | F15: 9 | G15: 0 | H15: 1025 | I15: 0.75
A16: 2013-02-15 | B16: -0.7 | C16: 1.4 | D16: -2.9 | F16: 8 | G16: 0 | H16: 1019.8 | I16: 0.8
A17: 2013-02-16 | B17: 0.3 | C17: 1.8 | D17: -0.9 | E17: 1.1 | F17: 6 | G17: 0 | H17: 1023.9 | I17: 0.85 | J17: Hfa | K17: H Doris | L17: Von 06:30 Uhr - 10:30 Uhr mäßiger Schnefall. Von 10:30 - 12:00 Uhr; 13:50 Uhr - 18:00 Uhr leichter Schneefall. Von 22:00 Uhr - 00:00 Uhr leichter Nebel.
A18: 2013-02-17 | B18: 0.4 | C18: 1.4 | D18: -0.2 | E18: 0.4 | F18: 4 | G18: 0 | H18: 1025.2 | I18: 0.85
A19: 2013-02-18 | B19: 0.1 | C19: 1.2 | D19: -0.7 | F19: 6 | G19: 0 | H19: 1022.6 | I19: 0.9
A20: 2013-02-19 | B20: 0.1 | C20: 1.4 | D20: -1.2 | E20: 10.4 | F20: 10 | G20: 0 | H20: 1013.8 | I20: 0.95 | J20: Nz | K20: T Siegmund | L20: Ganztag Schneeschauer, z.T. stark (Gegen 15 Uhr).
A21: 2013-02-20 | B21: -1.6 | C21: 0.2 | D21: -3.1 | E21: 2.5 | F21: 14 | G21: 0.1 | H21: 1019.5 | I21: 1 | L21: Gegen Mittag und 15:20 Uhr starker Graupelschauer, sonst leichter Schneefall. Von 16:00 Uhr - 23:59 Uhr starker Schneefall + starke Sichteinschränkung.
A22: 2013-02-21 | B22: -4.1 | C22: -2.7 | D22: -5.2 | E22: 0.5 | F22: 15 | G22: 0 | H22: 1022 | I22: 1 | J22: HFa | K22: H Fenne | L22: Ganztags Schnee u.a. stark mit Sichteinschränkung auf 4 km.
A23: 2013-02-22 | B23: -4.6 | C23: -3.8 | D23: -5.7 | E23: 0.4 | F23: 15 | G23: 0 | H23: 1018.9 | I23: 1.1 | L23: Ab Mittag Schneefall u. a. stark mit Sichteinschränkung auf 1 km. Von 17:45 Uhr - 19:00 Uhr leichten Nebel.
A24: 2013-02-23 | B24: -2.9 | C24: -1.3 | D24: -4.5 | E24: 12.7 | F24: 27 | G24: 0 | H24: 1012.1 | I24: 1.15 | J24: Sz | K24: T Thomas | L24: Bis gegen 17:00 Uhr starker Schneefall mit Sichteinschränkung auf 1 km.
A25: 2013-02-24 | B25: 0.2 | C25: 1.8 | D25: -1.7 | E25: 3.2 | F25: 32 | G25: 0 | H25: 1012.9 | I25: 1.25 | L25: Bis 10:00 Uhr Schneefall mit Sichteinschränkung auf 900 m. Von 17:00 Uhr - 23:59 Uhr starker Dunst.
A26: 2013-02-25 | B26: 1.7 | C26: 3.4 | D26: 0.8 | E26: 3.7 | F26: 18 | G26: 0 | H26: 1020.2 | I26: 1.3 | J26: HFa | K26: H Fenne | L26: Bis 09:30 Uhr starker Dunst. Von 09:31 Uhr - 23:59 Uhr mäßiger Dunst.
A27: 2013-02-26 | B27: 0.9 | C27: 1.6 | D27: 0.3 | E27: 0.7 | F27: 13 | G27: 0 | H27: 1029.4 | I27: 1.4 | L27: Von 08:30 Uhr - 10:30 Uhr mäßiger Nebel (300 m). Von 10:30 Uhr - 21:40 Uhr starker Dunst.
A28: 2013-02-27 | B28: 0.8 | C28: 1.7 | D28: 0.1 | E28: 0.2 | F28: 11 | G28: 0 | H28: 1031 | I28: 1.5 | J28: HB | L28: Von 18:40 Uhr - 23:59 Uhr starker Nebel (200 m). Von 17:45 Uhr - 18:39 Uhr leichter Nebel. Von 08:00 Uhr - 10:00; 16:30 Uhr - 17:45 Uhr mäßiger Dunst. Von 10:00 Uhr - 12:00 Uhr ; 15:00 Uhr - 16:30 Uhr leichter Dunst.
A29: 2013-02-28 | B29: 1.7 | C29: 3.6 | D29: 0.6 | F29: 8 | G29: 0 | H29: 1027.7 | I29: 1.6 | L29: Vom 00:00 Uhr - 10:00 Uhr starker Dunst. Von 10:00 Uhr - 10:30 Uhr mäßiger Dunst. Von 10:30 Uhr - 10:50 Uhr leichter Dunst.
A30: Durchschnitt | B30: =AVERAGE(B2:B29) -> -0.3357142857 | C30: =AVERAGE(C2:C29) -> 1.682142857 | D30: =AVERAGE(D2:D29) -> -2.278571429 | H30: =AVERAGE(H2:H29) -> 1015.792857 | I30: =AVERAGE(I2:I29) -> 0.8464285714
A31: Mittel | B31: 0.9 | E31: 35 | F31: - | G31: 77 | H31: 1018.4
